bitfinex/quotes_SOLUSD_20240809
["timestamp","ask_amount","ask_price","bid_price","bid_amount"]
[1723212373007,1.59676043,156.65,156.49,53.02266308]
[1723212373212,1.5967681,156.64,156.49,53.02266308]
[1723212373611,15.8728,156.66,156.54,43.02]
[1723212373816,15.8728,156.66,156.57,43.02]
[1723212374021,1.59627882,156.65,156.54,43.02]
[1723212374533,1.59627882,156.65,156.49,53.02266308]
[1723212374835,15.8728,156.66,156.52,43.02]
[1723212375210,43.02,156.64,156.49,53.02266308]
[1723212375404,43.02,156.64,156.49,10.00266308]
[1723212375405,6.5739,156.62,156.49,10.00266308]
[1723212375723,6.5739,156.62,156.35,47.60081685]
[1723212375724,6.3861,156.59,156.4,6.6750185]
[1723212375925,43.02,156.55,156.43,10.00793479]
[1723212376108,44.6178578,156.55,156.37,1.27828624]
[1723212376436,44.6178578,156.55,156.38,10.01210995]
[1723212376437,43.02,156.52,156.38,10.01210995]
[1723212376636,43.02,156.49,156.38,10.01210995]
[1723212376937,1.59865313,156.48,156.34,0.8568914]
[1723212377146,0.12549,156.47,156.34,10.87106701]
[1723212377435,1.59858243,156.47,156.34,10.87106701]
[1723212377610,49.80799,156.49,156.35,44.29886299]
[1723212377611,6.6625,156.49,156.35,44.29886299]
[1723212378236,6.6625,156.49,156.41,43.02]
[1723212378740,6.6625,156.49,156.38,43.02]
[1723212379439,6.6625,156.49,156.42,0.12549]
[1723212379634,6.6625,156.49,156.44,43.02]
[1723212380031,6.6625,156.49,156.33,27.1653561]
[1723212380032,1.59786744,156.48,156.38,43.02]
[1723212380331,1.59786744,156.48,156.33,7.1653561]
[1723212380332,6.6625,156.49,156.35,43.02]
[1723212380515,1.59824666,156.48,156.35,43.02]
[1723212380834,6.6625,156.49,156.35,43.02]
[1723212381243,8.26076569,156.49,156.35,43.02]
[1723212381546,6.6625,156.49,156.35,43.02]
[1723212381836,8.26086032,156.49,156.35,43.02]
[1723212382341,16.5771,156.48,156.35,43.02]
[1723212382813,16.5771,156.48,156.36,0.4805043]
[1723212383009,16.5771,156.48,156.38,43.02]
[1723212383640,16.5771,156.48,156.39,0.12549]
[1723212383820,16.5771,156.48,156.39,0.25098]
[1723212384028,6.6625,156.49,156.45,0.12549]
[1723212384220,6.6625,156.49,156.41,43.02]
[1723212384627,6.6625,156.49,156.42,0.25098]
[1723212384825,6.6625,156.49,156.43,1.27800089]
[1723212385043,6.6625,156.49,156.44,0.25098]
[1723212385434,6.6625,156.49,156.46,43.02]
[1723212385616,15.9489,156.55,156.46,43.02]
[1723212385930,22.1664,156.55,156.49,43.02]
[1723212386135,43.02,156.67,156.49,43.02]
[1723212386136,6.2175,156.61,156.5,0.25098]
[1723212386519,6.2175,156.61,156.5,0.12549]
[1723212386718,6.2175,156.61,156.5,45.25098]
[1723212386916,6.2175,156.61,156.56,0.12549]
[1723212387146,6.3825,156.66,156.58,43.02]
[1723212387319,6.3825,156.66,156.61,43.02]
[1723212387524,15.5117,156.7,156.61,43.02]
[1723212387525,15.5117,156.7,156.62,0.25098]
[1723212387744,15.5117,156.7,156.64,43.02]
[1723212387929,6.3825,156.72,156.65,1.52729696]
[1723212388121,6.3825,156.72,156.68,0.12549]
[1723212388320,16.2151,156.77,156.7,43.02]
[1723212388520,16.2151,156.77,156.68,0.12549]
[1723212388750,16.2151,156.77,156.66,43.02]
[1723212389039,16.2151,156.77,156.67,0.12549]
[1723212389249,16.2151,156.77,156.67,45.37647]
[1723212389437,16.2151,156.77,156.67,0.25098]
[1723212389628,16.2151,156.77,156.68,0.12549]
[1723212389818,16.2151,156.77,156.69,43.02]
[1723212390023,16.2151,156.77,156.7,1.65227759]
[1723212390219,17.80988037,156.77,156.64,0.12549]
[1723212390424,16.2151,156.77,156.67,0.12549]
[1723212390631,16.2151,156.77,156.69,43.02]
[1723212390840,6.1064,156.79,156.67,46.65238228]
[1723212390841,6.1064,156.79,156.72,43.02]
[1723212391145,1.59450101,156.84,156.68,0.12549]
[1723212391350,1.59450101,156.84,156.69,43.02]
[1723212391530,6.3763,156.83,156.69,43.02]
[1723212391727,1.59450101,156.84,156.69,43.02]
[1723212391728,7.97040101,156.84,156.69,43.02]
[1723212391929,16.77644302,156.85,156.69,43.02]
[1723212392233,15.1814,156.85,156.7,46.65230261]
[1723212392435,15.1814,156.85,156.72,43.02]
[1723212392626,15.1814,156.85,156.75,43.02]
[1723212392824,15.1814,156.85,156.76,0.12549]
[1723212393028,15.1814,156.85,156.72,43.02]
[1723212393029,1.59430869,156.84,156.72,43.02]
[1723212393238,15.1814,156.85,156.72,43.02]
[1723212393447,15.1814,156.85,156.73,0.12549]
[1723212393831,15.1814,156.85,156.73,1.52658259]
[1723212394030,15.1814,156.85,156.75,43.02]
[1723212394329,16.77557458,156.85,156.76,0.12549]
[1723212394637,15.1814,156.85,156.72,43.02]
[1723212394861,15.1814,156.85,156.73,0.25098]
[1723212395053,15.1814,156.85,156.76,0.12549]
[1723212395256,15.1814,156.85,156.76,45.37647]
[1723212395466,15.1814,156.85,156.76,45.50196]
[1723212395647,16.77552354,156.85,156.76,0.12549]
[1723212395964,15.1814,156.85,156.76,0.12549]
[1723212396149,15.1814,156.85,156.76,0.37647]
[1723212396463,15.1814,156.85,156.79,0.12549]
[1723212396764,15.1814,156.85,156.78,43.02]
[1723212396938,16.77568488,156.85,156.75,43.02]
[1723212397360,15.1814,156.85,156.78,43.02]
[1723212397866,16.77560005,156.85,156.75,43.02]
[1723212398161,15.1814,156.85,156.75,43.02]
[1723212398947,6.3752,156.86,156.78,43.02]
[1723212399153,6.3752,156.86,156.69,7.1653561]
[1723212399154,6.3752,156.86,156.73,1.27507758]
[1723212399348,6.3752,156.86,156.74,43.02]
[1723212399548,6.3752,156.86,156.75,20.0]
[1723212399861,6.3752,156.86,156.71,43.02]
[1723212399862,7.97018456,156.85,156.71,43.02]
[1723212400073,1.59428456,156.85,156.71,43.02]
[1723212400242,7.96988456,156.85,156.71,43.02]
[1723212400444,1.59428456,156.85,156.68,43.02]
[1723212400638,15.383,156.83,156.68,43.02]
[1723212400845,1.59496006,156.82,156.68,43.02]
[1723212401173,46.59496006,156.82,156.65,43.02]
[1723212401462,14.383,156.83,156.74,43.02]
[1723212401641,14.383,156.83,156.75,1.27556825]
[1723212401839,14.383,156.83,156.74,43.02]
[1723212402569,14.383,156.83,156.75,0.25098]
[1723212402758,14.383,156.83,156.77,43.02]
[1723212402960,6.3752,156.86,156.78,21.40066594]
[1723212403265,6.3752,156.86,156.78,20.0]
[1723212403468,6.3752,156.86,156.8,43.02]
[1723212403667,6.3752,156.86,156.81,20.0]
[1723212404042,6.3752,156.86,156.8,43.02]
[1723212404242,1.59402592,156.85,156.77,43.02]
[1723212404666,17.78632592,156.85,156.74,43.02]
[1723212405170,16.1923,156.85,156.74,43.02]
[1723212406450,16.1923,156.85,156.71,43.02]
[1723212406765,65.0,156.84,156.68,43.02]
[1723212406949,7.61995461,156.83,156.67,43.02]
[1723212407155,6.0252,156.83,156.7,43.02]
[1723212407466,1.59480745,156.82,156.7,43.02]
[1723212407673,46.59480745,156.82,156.7,43.02]
[1723212407861,1.59480745,156.82,156.7,43.02]
[1723212408169,46.59480745,156.82,156.7,43.02]
[1723212408477,43.27098,156.81,156.64,43.02]
[1723212408659,46.8465499,156.8,156.64,43.02]
[1723212408863,1.5952722,156.79,156.64,43.02]
[1723212409178,46.72076056,156.8,156.64,43.02]
[1723212409351,45.0,156.8,156.67,43.02]
[1723212409546,1.59505059,156.82,156.67,43.02]
[1723212409761,52.97175059,156.82,156.68,20.0]
[1723212409976,0.12549,156.74,156.51,16.4213]
[1723212410260,6.3821,156.69,156.56,43.02]
[1723212410471,0.12549,156.72,156.56,43.02]
[1723212410472,1.59638462,156.68,156.56,43.02]
[1723212410673,6.3841,156.64,156.5,43.02]
[1723212410849,1.59687607,156.63,156.5,43.02]
[1723212411053,16.6405,156.62,156.47,43.02]
[1723212411253,16.6405,156.62,156.5,43.02]
[1723212411254,46.72248553,156.61,156.5,43.02]
[1723212411683,1.59699553,156.61,156.5,43.02]
[1723212411863,52.98219553,156.61,156.47,43.02]
[1723212412063,6.3861,156.59,156.47,43.02]
[1723212412263,0.25098,156.6,156.4,43.02]
[1723212412264,6.3869,156.57,156.4,43.02]
[1723212412576,1.59770492,156.56,156.4,43.02]
[1723212412949,6.3499,156.58,156.4,50.97688371]
[1723212413155,6.3499,156.58,156.5,43.02]
[1723212413977,6.3499,156.58,156.51,1.27766319]
[1723212414286,6.3499,156.58,156.47,43.02]
[1723212414655,6.3873,156.56,156.4,49.69871161]
[1723212414863,1.5978862,156.55,156.4,43.02]
[1723212415155,1.59772503,156.54,156.4,43.02]
[1723212415485,0.12549,156.53,156.4,43.02]
[1723212415788,53.23749461,156.53,156.4,43.02]
[1723212415958,1.84899461,156.53,156.4,43.02]
[1723212416158,6.5595,156.51,156.37,43.02]
[1723212416469,14.5470568,156.51,156.37,43.02]
[1723212416979,8.1577568,156.51,156.37,43.02]
[1723212417171,45.25098,156.5,156.37,43.02]
[1723212417383,45.25098,156.5,156.34,10.87106701]
[1723212417384,43.02,156.44,156.34,10.87106701]
[1723212417684,6.2436,156.4,156.27,43.02]
[1723212418261,1.59913734,156.39,156.27,43.02]
[1723212418462,0.25098,156.38,156.25,10.01853927]
[1723212418762,1.85039409,156.38,156.25,10.01853927]
[1723212418963,0.12549,156.37,156.21,43.02]
[1723212419263,0.12549,156.35,156.21,43.02]
[1723212419459,1.97646832,156.35,156.21,43.02]
[1723212419660,1.60000409,156.36,156.21,43.02]
[1723212419857,1.60000409,156.36,156.18,10.87846224]
[1723212419858,23.90939189,156.35,156.18,10.87846224]
[1723212420081,51.01614439,156.34,156.18,0.8568914]
[1723212420261,1.85082439,156.34,156.18,0.8568914]
[1723212420458,1.59984439,156.34,156.19,43.02]
[1723212420664,0.37647,156.33,156.18,10.88267221]
[1723212420860,20.0,156.34,156.19,43.02]
[1723212421056,22.3096,156.35,156.22,43.02]
[1723212421286,22.3096,156.35,156.25,43.02]
[1723212421488,6.0053,156.35,156.25,43.02]
[1723212421787,1.57739644,156.34,156.25,43.02]
[1723212421971,1.57739644,156.34,156.18,10.88280874]
[1723212421972,1.57739644,156.34,156.19,43.02]
[1723212422172,1.57739644,156.34,156.19,63.02]
[1723212422560,6.0053,156.35,156.25,43.02]
[1723212423485,6.0053,156.35,156.21,1.27948898]
[1723212423684,1.57739644,156.34,156.18,53.90280874]
[1723212424169,1.57739644,156.34,156.18,10.88280874]
[1723212424170,6.3975,156.31,156.18,10.88280874]
[1723212424373,1.57739644,156.3,156.18,0.8568914]
[1723212424590,1.57739644,156.29,156.18,0.8568914]
[1723212424798,1.57739644,156.28,156.18,0.8568914]
[1723212424966,1.57739644,156.27,156.18,0.8568914]
[1723212425474,1.57739644,156.3,156.18,0.8568914]
[1723212425798,1.57739644,156.29,156.18,0.8568914]
[1723212425959,43.39647,156.28,156.18,0.8568914]
[1723212426163,6.3999,156.26,156.18,0.8568914]
[1723212426385,1.82837644,156.25,156.18,0.8568914]
[1723212426589,6.2107,156.22,156.08,43.02]
[1723212426778,1.57739644,156.21,156.08,43.02]
[1723212426977,0.12549,156.26,156.08,43.02]
[1723212426978,6.2107,156.29,156.15,43.02]
[1723212427179,20.0,156.41,156.24,43.02]
[1723212427180,6.2107,156.37,156.24,43.02]
[1723212427688,6.2107,156.37,156.19,20.0]
[1723212427689,6.2107,156.37,156.27,43.02]
[1723212427893,15.3729,156.41,156.28,45.50196]
[1723212428069,15.3729,156.41,156.3,43.02]
[1723212428391,1.57739644,156.4,156.25,0.12549]
[1723212428582,15.3729,156.41,156.27,43.02]
[1723212428895,15.3729,156.41,156.3,43.02]
[1723212429064,6.3475,156.43,156.33,43.02]
[1723212429392,6.3475,156.43,156.34,20.0]
[1723212429593,1.57739644,156.42,156.34,20.0]
[1723212429887,1.57739644,156.42,156.31,0.25098]
[1723212429888,6.3475,156.43,156.35,1.27895467]
[1723212430094,6.3475,156.43,156.31,21.52976105]
[1723212430286,6.3475,156.43,156.34,0.12549]
[1723212430593,6.2141,156.49,156.37,0.12549]
[1723212430778,6.2141,156.49,156.37,20.12549]
[1723212430979,6.2141,156.49,156.37,20.0]
[1723212431370,7.96799644,156.48,156.33,43.02]
[1723212431565,1.57739644,156.48,156.32,0.12549]
[1723212431769,1.57739644,156.48,156.27,53.94097114]
[1723212431770,6.3921,156.45,156.27,53.94097114]
[1723212431986,1.57739644,156.44,156.28,1.27916867]
[1723212432200,6.3926,156.43,156.27,53.94097114]
[1723212432401,1.57739644,156.45,156.27,55.22012127]
[1723212432590,1.57739644,156.46,156.33,43.02]
[1723212432784,49.2341,156.49,156.33,43.02]
[1723212432785,1.57739644,156.45,156.33,43.02]
[1723212433021,49.2341,156.49,156.3,43.02]
[1723212433022,1.57739644,156.48,156.3,43.02]
[1723212433188,49.2341,156.49,156.31,20.0]
[1723212433507,7.96799644,156.48,156.32,0.12549]
[1723212433710,0.12549,156.47,156.32,0.25098]
[1723212433885,6.2141,156.49,156.33,46.57796828]
[1723212434205,1.57739644,156.48,156.34,20.12549]
[1723212434408,1.57739644,156.48,156.34,20.0]
[1723212434588,49.2341,156.49,156.35,0.12549]
[1723212434784,1.57739644,156.48,156.34,20.0]
[1723212434986,6.2141,156.49,156.35,0.12549]
[1723212435315,1.57739644,156.48,156.35,20.0]
[1723212435619,6.3911,156.47,156.32,43.14549]
[1723212435781,44.59739644,156.46,156.29,43.02]
[1723212435978,7.96919644,156.45,156.29,43.02]
[1723212436181,7.96919644,156.45,156.27,8.76724499]
[1723212436182,43.02,156.43,156.27,8.76724499]
[1723212436408,1.57739644,156.42,156.25,43.02]
[1723212436780,1.57739644,156.42,156.25,44.29929208]
[1723212436984,6.3942,156.4,156.24,8.76724499]
[1723212437184,6.3947,156.38,156.24,51.78724499]
[1723212437489,6.3131,156.36,156.21,43.02]
[1723212437685,6.3131,156.36,156.22,1.27967678]
[1723212437881,1.57739644,156.35,156.21,43.02]
[1723212438086,1.57739644,156.35,156.19,8.76724499]
[1723212438287,43.27098,156.34,156.19,8.76724499]
[1723212438585,1.57739644,156.33,156.18,43.02]
[1723212438785,6.3975,156.32,156.18,43.02]
[1723212438989,43.14549,156.34,156.15,6.29892965]
[1723212438990,7.97489644,156.31,156.15,43.02]
[1723212439600,0.12549,156.34,156.18,43.02]
[1723212439811,20.0,156.34,156.21,43.02]
[1723212440013,1.57739644,156.35,156.21,43.02]
[1723212440309,6.3131,156.36,156.21,44.29981227]
[1723212440530,1.57739644,156.35,156.21,43.02]
[1723212440696,6.3131,156.36,156.24,43.02]
[1723212440893,6.3131,156.36,156.27,43.02]
[1723212441287,16.2862,156.37,156.28,45.0]
[1723212441490,6.3475,156.42,156.3,43.02]
[1723212442010,6.3475,156.42,156.31,0.12549]
[1723212442216,6.3475,156.42,156.3,43.02]
[1723212442407,7.92489644,156.42,156.3,43.02]
[1723212442719,7.92489644,156.42,156.27,43.14549]
[1723212442921,14.31799644,156.42,156.28,20.12549]
[1723212443232,7.92489644,156.42,156.28,20.12549]
[1723212443518,14.31789644,156.42,156.28,20.12549]
[1723212443699,7.92489644,156.42,156.28,20.12549]
[1723212444114,6.3475,156.42,156.33,43.02]
[1723212444615,6.3475,156.42,156.31,0.12549]
[1723212444828,7.92489644,156.42,156.31,20.0]
[1723212445193,7.92489644,156.42,156.27,43.02]
[1723212445407,6.3938,156.41,156.27,43.02]
[1723212445593,1.82837644,156.4,156.24,43.02]
[1723212445796,1.82837644,156.39,156.24,43.02]
[1723212445994,1.82837644,156.39,156.18,8.76724499]
[1723212445995,6.3969,156.33,156.18,8.76724499]
[1723212446197,1.70288644,156.32,156.18,43.02]
[1723212446397,46.70288644,156.32,156.18,43.02]
[1723212446702,6.0019,156.31,156.18,43.02]
[1723212447028,7.57929644,156.31,156.18,43.02]
[1723212447897,15.38649,156.3,156.15,43.02]
[1723212448120,0.12549,156.28,156.12,43.02]
[1723212448318,0.12549,156.26,156.12,43.02]
[1723212448627,6.4012,156.22,156.09,59.3491184]
[1723212448796,8.10448644,156.21,156.09,10.03018875]
[1723212448997,0.12549,156.21,156.07,1.28110946]
[1723212449293,1.57739644,156.23,156.09,43.02]
[1723212449500,1.57739644,156.23,156.06,49.71381225]
[1723212449501,6.402,156.2,156.06,49.71381225]
[1723212449708,1.70288644,156.2,156.06,49.71381225]
[1723212449906,43.02,156.24,156.06,44.30112163]
[1723212450229,21.82837644,156.23,156.05,6.29892965]
[1723212450423,6.0676,156.18,156.04,10.03212095]
[1723212450627,6.0676,156.18,156.06,43.02]
[1723212450829,6.0676,156.18,156.09,43.02]
[1723212451119,1.57739644,156.17,156.06,51.78724499]
[1723212451300,1.57739644,156.17,156.04,10.03212095]
[1723212451495,6.0676,156.18,156.04,10.03212095]
[1723212451702,6.0676,156.18,156.06,43.02]
[1723212451925,6.0676,156.18,156.09,43.02]
[1723212452125,6.0676,156.18,156.1,1.28073688]
[1723212452296,6.0676,156.18,156.09,43.02]
[1723212452500,1.57739644,156.25,156.13,0.12549]
[1723212452501,6.3973,156.25,156.13,0.12549]
[1723212452700,6.3973,156.25,156.16,0.12549]
[1723212452928,6.3973,156.25,156.16,1.5313123]
[1723212453603,6.3973,156.31,156.19,0.12549]
[1723212453804,6.3973,156.31,156.22,0.12549]
[1723212454010,6.3973,156.31,156.22,0.25098]
[1723212454217,6.3973,156.31,156.22,66.53073636]
[1723212454405,59.5062,156.39,156.24,43.02]
[1723212454738,16.4862,156.39,156.27,0.12549]
[1723212454951,16.4862,156.39,156.27,46.78127639]
[1723212455148,6.3973,156.4,156.3,0.12549]
[1723212455359,6.3973,156.47,156.3,46.78088794]
[1723212455651,6.3973,156.47,156.34,0.12549]
[1723212455819,1.57739644,156.46,156.34,20.12549]
[1723212456022,6.3973,156.47,156.35,0.12549]
[1723212456216,6.3973,156.47,156.37,0.12549]
[1723212456448,1.57739644,156.46,156.36,43.02]
[1723212456737,6.3973,156.47,156.34,20.12549]
[1723212456738,6.3973,156.47,156.35,0.12549]
[1723212456946,6.3973,156.47,156.35,45.50196]
[1723212457324,6.3973,156.47,156.36,20.0]
[1723212457531,6.3973,156.47,156.37,0.12549]
[1723212457735,6.3973,156.47,156.37,45.25098]
[1723212457943,6.3973,156.47,156.38,1.27861287]
[1723212458245,12.4678,156.55,156.39,0.50196]
[1723212458438,12.4678,156.55,156.39,45.50196]
[1723212458439,1.57739644,156.54,156.39,45.50196]
[1723212458644,7.65749644,156.55,156.41,43.14549]
[1723212458939,6.0801,156.55,156.43,0.12549]
[1723212459141,6.0801,156.55,156.43,1.40358343]
[1723212459523,6.0801,156.55,156.44,0.12549]
[1723212460924,6.0801,156.55,156.43,0.25098]
[1723212461225,64.59739644,156.54,156.38,43.02]
[1723212461642,6.3889,156.52,156.38,43.02]
[1723212461844,20.0,156.54,156.41,43.02]
[1723212462026,6.0801,156.55,156.41,44.29804802]
[1723212462744,6.0801,156.55,156.44,43.02]
[1723212462923,0.8568914,156.58,156.46,0.12549]
[1723212463130,0.8568914,156.58,156.46,46.65417953]
[1723212463341,0.8568914,156.58,156.5,43.02]
[1723212463542,0.8568914,156.58,156.52,0.12549]
[1723212463737,0.8568914,156.58,156.51,0.12549]
[1723212463926,0.8568914,156.58,156.47,0.12549]
[1723212463927,0.8568914,156.58,156.48,0.12549]
[1723212464134,0.8568914,156.58,156.48,65.37647]
[1723212464326,0.8568914,156.58,156.5,43.14549]
[1723212464750,0.8568914,156.58,156.52,0.12549]
[1723212465049,0.8568914,156.58,156.56,43.02]
[1723212465251,0.8568914,156.58,156.57,45.50196]
[1723212465729,7.2412914,156.73,156.57,47.65568615]
[1723212465932,7.2412914,156.73,156.62,0.12549]
[1723212466179,7.2412914,156.73,156.64,0.12549]
[1723212466451,0.8568914,156.73,156.65,0.12549]
[1723212466642,0.8568914,156.73,156.63,0.12549]
[1723212466853,0.8568914,156.73,156.63,0.25098]
[1723212467028,0.8568914,156.73,156.65,0.12549]
[1723212467233,0.8568914,156.73,156.65,46.52727418]
[1723212467535,0.8568914,156.73,156.67,43.14549]
[1723212467740,0.8568914,156.73,156.68,45.12549]
[1723212467932,0.8568914,156.73,156.69,0.12549]
[1723212468139,0.8568914,156.73,156.69,0.25098]
[1723212468333,0.8568914,156.73,156.64,43.02]
[1723212468629,0.8568914,156.73,156.62,0.12549]
[1723212468834,0.8568914,156.73,156.62,20.25098]
[1723212469034,0.8568914,156.73,156.63,0.12549]
[1723212469237,0.8568914,156.73,156.61,43.02]
[1723212469443,6.3808,156.72,156.58,43.02]
[1723212469637,6.3817,156.7,156.58,43.02]
[1723212469829,2.43428784,156.73,156.55,43.02]
[1723212470040,0.8568914,156.73,156.61,43.02]
[1723212470479,0.8568914,156.73,156.62,1.27640831]
[1723212470770,0.8568914,156.73,156.64,43.02]
[1723212470971,0.8568914,156.73,156.65,0.12549]
[1723212471268,0.8568914,156.73,156.65,66.77829925]
[1723212471653,0.8568914,156.73,156.7,43.02]
[1723212471865,0.8568914,156.73,156.71,46.77767102]
[1723212472048,0.8568914,156.73,156.71,45.50196]
[1723212472251,0.8568914,156.73,156.71,0.12549]
[1723212472468,0.8568914,156.73,156.68,0.12549]
[1723212472670,0.8568914,156.73,156.68,65.37647]
[1723212472868,0.8568914,156.73,156.71,0.12549]
[1723212473043,0.8568914,156.73,156.71,66.77757315]
[1723212473464,0.8568914,156.73,156.71,65.50196]
[1723212473688,0.8568914,156.73,156.71,65.37647]
[1723212473853,0.8568914,156.73,156.71,45.12549]
[1723212474462,0.8568914,156.73,156.68,0.12549]
[1723212474672,0.8568914,156.73,156.68,21.40145332]
[1723212474845,0.8568914,156.73,156.7,43.02]
[1723212475042,0.8568914,156.73,156.71,21.40108257]
[1723212475658,0.8568914,156.73,156.72,0.12549]
[1723212476453,0.8568914,156.73,156.71,20.0]
[1723212476662,0.8568914,156.73,156.72,0.12549]
[1723212477170,0.8568914,156.73,156.71,20.0]
[1723212477366,0.8568914,156.73,156.7,43.02]
[1723212477561,0.8568914,156.73,156.67,43.02]
[1723212478064,0.8568914,156.73,156.68,1.27605834]
[1723212478447,0.8568914,156.73,156.67,43.02]
[1723212479163,0.8568914,156.73,156.7,43.02]
[1723212479344,0.8568914,156.73,156.71,1.27582938]
[1723212480167,0.8568914,156.73,156.72,0.25098]
[1723212480366,0.8568914,156.73,156.71,20.0]
[1723212480667,0.8568914,156.73,156.72,1.5268078]
[1723212480970,0.8568914,156.73,156.72,45.50196]
[1723212481188,0.8568914,156.73,156.72,65.50196]
[1723212481669,6.5669,156.86,156.74,0.12549]
[1723212481983,6.5669,156.86,156.77,0.12549]
[1723212482152,0.8568914,156.89,156.77,66.77717228]
[1723212482351,0.8568914,156.89,156.79,43.02]
[1723212482755,0.8568914,156.89,156.8,20.12549]
[1723212482982,0.8568914,156.89,156.8,20.0]
[1723212482983,1.57739644,156.88,156.8,20.0]
[1723212483271,1.57739644,156.88,156.7,73.94097114]
[1723212483272,7.95169644,156.88,156.73,43.02]
[1723212483471,44.59739644,156.88,156.7,51.78724499]
[1723212483692,6.3755,156.85,156.7,43.02]
[1723212483851,6.3763,156.83,156.7,43.02]
[1723212484050,6.3763,156.83,156.65,8.76724499]
[1723212484051,1.57739644,156.82,156.67,43.02]
[1723212484349,6.3777,156.8,156.65,8.76724499]
[1723212484653,14.51269644,156.79,156.64,43.02]
[1723212485083,14.51279644,156.79,156.64,43.02]
[1723212485407,0.12549,156.77,156.61,43.02]
[1723212485691,6.3802,156.74,156.6,8.76724499]
[1723212485899,43.02,156.76,156.61,44.29673807]
[1723212486105,1.57739644,156.76,156.61,43.02]
[1723212486405,1.57739644,156.76,156.59,8.76724499]
[1723212486406,0.12549,156.73,156.58,43.02]
[1723212486696,43.02,156.71,156.55,43.02]
[1723212486994,6.3829,156.67,156.5,8.76724499]
[1723212487224,16.5684,156.65,156.5,8.76724499]
[1723212487419,1.95386644,156.64,156.48,43.02]
[1723212487573,6.3849,156.62,156.48,43.02]
[1723212487773,59.5884,156.65,156.49,1.27768668]
[1723212488071,16.5684,156.65,156.49,8.76724499]
[1723212488283,16.5684,156.65,156.54,43.02]
[1723212488775,16.5684,156.65,156.54,42.72]
[1723212488972,6.1186,156.69,156.57,43.02]
[1723212489177,6.1186,156.69,156.58,1.27688464]
[1723212489378,6.1186,156.69,156.57,51.78724499]
[1723212489783,6.1186,156.69,156.6,43.02]
[1723212490000,15.5777,156.74,156.61,21.40212913]
[1723212490201,15.5777,156.74,156.61,20.0]
[1723212490500,7.90749644,156.75,156.61,20.0]
[1723212490501,15.3491,156.81,156.64,0.12549]
[1723212490676,1.57739644,156.8,156.66,43.02]
[1723212490877,1.57739644,156.8,156.67,20.0]
[1723212491182,1.57739644,156.8,156.68,0.12549]
[1723212491390,6.2661,156.87,156.72,43.02]
[1723212491575,6.2661,156.87,156.73,1.27576292]
[1723212491896,6.2661,156.87,156.75,0.12549]
[1723212492081,6.2661,156.87,156.75,0.50196]
[1723212492274,6.2661,156.87,156.73,65.12549]
[1723212492483,6.3755,156.86,156.73,20.0]
[1723212492784,1.57739644,156.85,156.7,0.12549]
[1723212493173,43.02,156.82,156.6,15.4065]
[1723212493373,1.57739644,156.81,156.65,43.02]
[1723212493802,46.57739644,156.81,156.65,43.02]
[1723212494404,0.25098,156.8,156.65,43.02]
[1723212494580,0.12549,156.78,156.62,43.02]
[1723212494781,1.57739644,156.77,156.62,43.02]
[1723212495100,43.14549,156.84,156.65,43.02]
[1723212495271,0.12549,156.82,156.65,43.02]
[1723212495598,0.12549,156.82,156.68,43.02]
[1723212495599,1.57739644,156.82,156.68,43.02]
[1723212495779,1.57739644,156.82,156.69,20.0]
[1723212495975,1.57739644,156.82,156.66,20.0]
[1723212496221,53.02,156.88,156.69,43.02]
[1723212496702,53.02,156.88,156.7,20.0]
[1723212496903,43.02,156.84,156.68,43.02]
[1723212497084,6.3767,156.82,156.66,0.12549]
[1723212497295,6.3787,156.77,156.62,43.02]